bitfinex-derivatives/quotes_SOLF0:USTF0_20250228
["timestamp","ask_amount","ask_price","bid_price","bid_amount"]
[1740721123310,2.99153949,127.57,127.45,87.26565129]
[1740721123507,0.0572945,127.53,127.45,85.98821041]
[1740721123808,2.9916624,127.56,127.45,85.98821041]
[1740721123809,14.38,127.52,127.45,85.98821041]
[1740721124009,7.8525,127.48,127.45,85.98821041]
[1740721124208,0.05287257,127.5,127.45,85.98821041]
[1740721125110,0.05287257,127.5,127.46,1.27744088]
[1740721125411,0.05287257,127.5,127.45,85.98821041]
[1740721125616,0.05287257,127.5,127.46,1.27744088]
[1740721126112,0.05287257,127.5,127.45,85.98821041]
[1740721126413,0.05287257,127.5,127.45,1.27744088]
[1740721127209,0.05287257,127.5,127.31,14.38]
[1740721127515,11.5731,127.51,127.43,1.27744088]
[1740721128012,0.05331371,127.48,127.31,14.38]
[1740721128211,11.5731,127.51,127.43,1.27744088]
[1740721128605,0.05950808,127.48,127.33,14.38]
[1740721128811,19.4235,127.51,127.44,1.27744088]
[1740721129317,0.05797447,127.49,127.44,1.27744088]
[1740721129618,0.05797447,127.49,127.45,1.27744088]
[1740721129811,11.5731,127.51,127.46,1.27744088]
[1740721130211,7.7511,127.51,127.48,1.27744088]
[1740721130610,0.05684257,127.51,127.48,1.27744088]
[1740721130811,0.05684257,127.51,127.5,1.27744088]
[1740721131113,14.38,127.57,127.5,1.27744088]
[1740721131314,14.38,127.57,127.52,1.27744088]
[1740721131609,0.05177627,127.54,127.52,1.27744088]
[1740721131815,0.05177627,127.54,127.4,14.38]
[1740721132018,0.05177627,127.54,127.52,1.27744088]
[1740721132209,14.38,127.57,127.52,1.27744088]
[1740721132411,0.05071067,127.54,127.47,7.8525]
[1740721132608,0.05071067,127.54,127.52,1.27744088]
[1740721133110,0.05071067,127.54,127.44,7.8542]
[1740721133317,14.38,127.57,127.48,1.27744088]
[1740721133515,14.38,127.57,127.49,1.27744088]
[1740721133516,0.05192185,127.5,127.49,1.27744088]
[1740721133820,7.8479,127.55,127.49,1.27744088]
[1740721134115,0.0599507,127.51,127.45,7.8535]
[1740721134316,0.0599507,127.51,127.49,1.27744088]
[1740721134512,0.0599507,127.51,127.37,209.38]
[1740721134708,0.0599507,127.51,127.46,1.27744088]
[1740721134910,7.9476,127.53,127.46,1.27744088]
[1740721135117,0.05936479,127.5,127.37,14.38]
[1740721135315,7.9476,127.53,127.46,1.27744088]
[1740721135516,7.8506,127.51,127.46,1.27744088]
[1740721135714,7.9476,127.53,127.48,1.27744088]
[1740721135916,0.05518543,127.51,127.5,1.27744088]
[1740721136115,4.0648,127.54,127.5,1.27744088]
[1740721136311,0.057417,127.52,127.37,38.06]
[1740721136516,4.0648,127.54,127.5,1.27744088]
[1740721136711,11.9133,127.54,127.5,1.27744088]
[1740721136910,0.05037006,127.53,127.51,1.27744088]
[1740721137115,1.56788962,127.56,127.52,1.27744088]
[1740721137420,0.05461056,127.53,127.52,1.27744088]
[1740721137624,0.05461056,127.53,127.37,38.06]
[1740721137811,0.05461056,127.53,127.52,1.27744088]
[1740721138015,7.9476,127.58,127.52,1.27744088]
[1740721138016,4.0986,127.58,127.52,1.27744088]
[1740721138217,18.1835,127.62,127.56,1.27744088]
[1740721138412,7.846,127.58,127.56,1.27744088]
[1740721138719,7.846,127.58,127.53,7.8484]
[1740721138921,7.846,127.58,127.56,1.27744088]
[1740721139316,7.846,127.58,127.53,7.8484]
[1740721139523,7.846,127.58,127.56,1.27744088]
[1740721139924,7.8466,127.57,127.44,209.38]
[1740721140129,7.8466,127.57,127.56,1.27744088]
[1740721140320,213.42,127.59,127.55,1.27744088]
[1740721140523,7.8471,127.56,127.54,1.27744088]
[1740721140834,7.90224464,127.56,127.54,1.27744088]
[1740721141026,7.90224464,127.56,127.5,7.8504]
[1740721141227,7.8477,127.55,127.54,1.27744088]
[1740721141426,0.05514464,127.56,127.54,1.27744088]
[1740721141628,0.05514464,127.56,127.5,7.8504]
[1740721141827,7.90264464,127.56,127.54,1.27744088]
[1740721142223,7.90264464,127.56,127.44,14.38]
[1740721142432,3.8035,127.62,127.55,1.27744088]
[1740721142624,3.8035,127.62,127.44,38.06]
[1740721142625,4.0885,127.66,127.51,14.38]
[1740721143130,4.0885,127.66,127.47,213.4]
[1740721143131,0.05784454,127.6,127.47,213.4]
[1740721143333,14.38,127.62,127.46,14.38]
[1740721143628,0.05144328,127.55,127.46,14.38]
[1740721143832,14.38,127.62,127.46,14.38]
[1740721144029,0.05177974,127.52,127.46,14.38]
[1740721144235,14.38,127.62,127.46,14.38]
[1740721144429,6.487e-05,127.5,127.46,37.92]
[1740721144633,3.9314,127.64,127.46,14.38]
[1740721145028,7.8481,127.55,127.49,7.8512]
[1740721145431,7.8481,127.55,127.46,14.38]
[1740721145739,0.05802443,127.53,127.51,0.05076981]
[1740721146736,0.05802443,127.53,127.39,213.4]
[1740721146926,14.38,127.52,127.38,85.98821041]
[1740721147235,3.8215,127.51,127.38,85.98821041]
[1740721147538,193.8215,127.51,127.38,85.98821041]
[1740721147735,7.8543,127.45,127.38,7.8581]
[1740721148532,0.05468697,127.43,127.4,7.8569]
[1740721148734,213.42,127.49,127.37,85.98821041]
[1740721148936,191.56887354,127.48,127.37,85.98821041]
[1740721149135,7.8563,127.41,127.37,85.98821041]
[1740721149434,14.38,127.42,127.37,85.98821041]
[1740721149639,7.8576,127.39,127.37,85.98821041]
[1740721150136,4.14031275,127.4,127.37,35.23881041]
[1740721150436,4.14031275,127.4,127.36,88.13110334]
[1740721150934,1.42790017,127.39,127.36,62.34760334]
[1740721151232,213.5,127.38,127.34,265.48138862]
[1740721151538,213.5,127.38,127.22,129.60914124]
[1740721151539,1.42790017,127.37,127.22,129.60914124]
[1740721151832,1.57035175,127.36,127.23,3.7697]
[1740721152026,0.05477562,127.31,127.23,7.9377]
[1740721152226,14.38,127.35,127.23,7.9377]
[1740721152427,14.38,127.35,127.29,7.8632]
[1740721152631,14.38,127.35,127.23,7.9377]
[1740721152632,1.57035175,127.36,127.23,42.34783483]
[1740721153134,1.57035175,127.36,127.24,4.1227]
[1740721153331,1.57035175,127.36,127.23,42.34783483]
[1740721153332,191.42718829,127.35,127.23,42.34783483]
[1740721153532,0.05739094,127.31,127.28,0.05034005]
[1740721153737,15.9510919,127.3,127.28,0.00064005]
[1740721154032,1.57121533,127.29,127.19,4.1227]
[1740721154239,191.57121533,127.29,127.19,38.53283483]
[1740721154942,0.05554271,127.25,127.19,38.53283483]
[1740721155141,0.05554271,127.25,127.19,46.40273483]
[1740721155441,0.05554271,127.25,127.19,38.53283483]
[1740721155946,0.05554271,127.25,127.2,7.869]
[1740721156242,0.05554271,127.25,127.2,34.41013483]
[1740721156442,0.05554271,127.25,127.19,4.1227]
[1740721156946,0.05554271,127.25,127.2,7.8688]
[1740721157139,0.05554271,127.25,127.19,4.1227]
[1740721157639,0.05554271,127.25,127.2,7.8687]
[1740721157834,0.05554271,127.25,127.19,4.1227]
[1740721158034,1.57121533,127.29,127.2,7.7406]
[1740721158637,1.57121533,127.29,127.26,7.865]
[1740721158840,1.57121533,127.29,127.2,7.7406]
[1740721159037,1.57121533,127.29,127.2,42.15073483]
[1740721159235,0.0517229,127.26,127.24,7.8667]
[1740721159644,0.0517229,127.26,127.23,0.05804956]
[1740721163446,136.08184005,127.34,127.23,0.05804956]
[1740721163646,42.13993843,127.37,127.26,7.8656]
[1740721163949,42.13993843,127.37,127.27,4.0793]
[1740721164150,213.5,127.38,127.27,4.0793]
[1740721164446,215.07010519,127.38,127.27,4.0793]
[1740721164644,0.05524712,127.34,127.31,0.05502566]
[1740721164841,14.4,127.33,127.31,0.05502566]
[1740721166041,37.96,127.33,127.23,3.9945]
[1740721166352,14.4,127.33,127.23,36.8334195]
[1740721166740,7.8625,127.31,127.23,36.8334195]
[1740721167254,0.05107366,127.28,127.26,0.05222157]
[1740721167752,191.57084511,127.32,127.26,0.05222157]
[1740721167954,1.57084511,127.32,127.26,7.91762157]
[1740721168148,14.4,127.37,127.26,7.91762157]
[1740721168352,1.57035175,127.36,127.26,32.89114107]
[1740721168552,1.57035175,127.36,127.23,3.9945]
[1740721168746,1.42721539,127.35,127.23,36.8334195]
[1740721168946,0.05358748,127.31,127.28,0.05087772]
[1740721169354,14.4,127.3,127.28,0.05087772]
[1740721169755,22.2636,127.3,127.28,0.05087772]
[1740721170054,14.4,127.3,127.28,0.05087772]
[1740721170848,14.4,127.3,127.22,3.9221]
[1740721171049,14.4,127.3,127.22,36.7610195]
[1740721172051,0.05165454,127.27,127.25,0.05255168]
[1740721172258,7.8666,127.25,127.17,3.8965]
[1740721172454,213.89165454,127.27,127.17,36.7354195]
[1740721172654,213.84,127.27,127.17,36.7354195]
[1740721173057,7.8672,127.24,127.17,36.7354195]
[1740721173360,213.84,127.27,127.17,36.7354195]
[1740721173559,0.05332123,127.22,127.19,0.03606212]
[1740721173754,0.05332123,127.22,127.17,3.8965]
[1740721174058,0.05332123,127.22,127.19,0.03606212]
[1740721174862,7.92152123,127.22,127.19,0.03606212]
[1740721175057,0.05332123,127.22,127.19,0.03606212]
[1740721175253,7.8693,127.2,127.19,0.03606212]
[1740721175652,190.05332123,127.22,127.11,4.1085]
[1740721175853,3.932,127.22,127.11,36.9474195]
[1740721176162,1.57220344,127.21,127.11,36.9474195]
[1740721176662,1.57220344,127.21,127.11,32.8389195]
[1740721176861,0.05330771,127.17,127.11,32.8389195]
[1740721177560,14.4,127.16,127.11,32.8389195]
[1740721177755,22.2718,127.16,127.1,3.8226]
[1740721177955,14.4,127.16,127.1,36.6615195]
[1740721178161,0.05947455,127.14,127.1,36.6615195]
[1740721178367,0.05947455,127.14,127.1,32.8389195]
[1740721178566,0.05947455,127.14,127.04,4.1085]
[1740721178762,228.36,127.16,127.04,36.9474195]
[1740721178967,0.05129138,127.1,127.04,36.9474195]
[1740721179660,0.05129138,127.1,127.04,10.56686076]
[1740721180762,7.92679138,127.1,127.04,10.56686076]
[1740721180973,0.05129138,127.1,127.01,8.2619]
[1740721181170,228.36,127.16,127.01,8.2619]
[1740721181364,236.2318,127.16,127.01,8.2619]
[1740721181767,228.36,127.16,127.01,8.2619]
[1740721182068,7.8728,127.15,127.07,7.8768]
[1740721182364,0.05844229,127.1,127.07,0.05140381]
[1740721182569,0.05844229,127.1,127.07,10.56686076]
[1740721182767,228.36,127.16,127.07,10.56686076]
[1740721182966,228.36,127.16,127.07,10.61978433]
[1740721182967,7.9301806,127.1,127.07,10.61978433]
[1740721183171,7.8757,127.1,127.07,10.56686076]
[1740721183372,0.06034097,127.1,127.07,10.61712524]
[1740721183573,0.06034097,127.1,127.07,0.05026448]
[1740721183975,7.93584097,127.1,127.07,0.05026448]
[1740721184270,0.06034097,127.1,127.07,0.05026448]
[1740721184579,14.42,127.09,127.07,6.448e-05]
[1740721185075,38.02,127.09,127.07,6.448e-05]
[1740721185270,7.8767,127.08,127.07,6.448e-05]
[1740721185669,31.4767,127.08,127.07,6.448e-05]
[1740721185868,7.8817,127.0,126.96,3.9176]
[1740721186075,214.06,127.05,126.96,14.48452524]
[1740721186869,7.8812,127.01,126.96,14.48452524]
[1740721187973,0.05581918,127.02,126.96,14.48452524]
[1740721188182,0.05581918,127.02,126.96,3.9176]
[1740721188570,7.8819,127.0,126.96,14.48452524]
[1740721188778,14.42,127.02,126.96,14.48452524]
[1740721189075,0.05106337,126.99,126.96,14.48452524]
[1740721189975,7.883,126.98,126.96,14.48452524]
[1740721190174,0.05106337,126.99,126.96,14.48452524]
[1740721190478,214.06,127.05,126.96,3.9176]
[1740721190871,221.9387,127.05,126.97,7.8833]
[1740721191776,221.9387,127.05,127.0,0.05372246]
[1740721191777,0.05538851,127.02,127.0,0.05372246]
[1740721192481,0.05538851,127.02,127.0,10.6206477]
[1740721192675,214.06,127.05,127.0,0.05372246]
[1740721192979,7.8804,127.03,127.0,10.6206477]
[1740721193176,214.06,127.05,127.0,10.6206477]
[1740721193675,214.06,127.05,127.0,0.05372246]
[1740721193875,0.05190346,127.04,127.0,0.05372246]
[1740721194076,0.05190346,127.04,126.86,0.93727182]
[1740721194277,1.57443123,127.03,126.87,3.839]
[1740721194479,1.42326573,127.02,126.87,14.40592524]
[1740721194680,15.99467915,127.01,126.87,22.29522524]
[1740721194981,15.99467915,127.01,126.87,14.40592524]
[1740721195183,15.99467915,127.01,126.87,3.839]
[1740721195380,0.05501986,126.95,126.93,0.05019912]
[1740721195883,15.99467915,127.01,126.93,4.05248851]
[1740721196082,7.8822,127.0,126.93,3.9971]
[1740721196283,15.99467915,127.01,126.94,3.9945]
[1740721196674,7.8828,126.99,126.94,3.9945]
[1740721196875,15.99467915,127.01,126.94,14.56142524]
[1740721197077,15.99467915,127.01,126.95,0.05211235]
[1740721197078,0.05536665,126.98,126.95,0.05211235]
[1740721197385,15.99467915,127.01,126.95,0.05211235]
[1740721197687,7.8817,127.0,126.95,0.05211235]
[1740721197882,7.8817,127.0,126.95,4.16311235]
[1740721198081,15.99467915,127.01,126.95,4.16311235]
[1740721198278,15.99467915,127.01,126.95,14.73003759]
[1740721198486,0.05753386,126.99,126.95,14.73003759]
[1740721198886,0.05753386,126.99,126.95,4.16311235]
[1740721199081,15.99467915,127.01,126.95,4.16311235]
[1740721199478,67.37251774,127.04,126.95,4.16311235]
[1740721199479,10.4957301,127.03,126.95,4.16311235]
[1740721199783,10.4957301,127.03,126.95,4.111]
[1740721199984,10.4957301,127.03,126.95,14.67792524]
[1740721200186,0.05467017,127.0,126.98,0.05781607]
[1740721200687,10.4957301,127.03,126.98,0.05781607]
[1740721200889,10.4957301,127.03,126.98,10.62474131]
[1740721201892,67.37251774,127.04,126.95,0.12053065]
[1740721202087,61.08851774,127.04,126.98,7.8829]
[1740721202287,61.08851774,127.04,126.94,3.9945]
[1740721202988,0.05686734,127.0,126.94,3.9945]
[1740721203193,83.79834976,127.04,126.98,0.05328203]
[1740721203585,91.67754976,127.04,126.98,0.05328203]
[1740721203790,69.20124976,127.04,127.03,7.8798]
[1740721203991,39.33314976,127.04,127.03,7.8798]
[1740721204187,70.56540146,127.05,127.03,23.62]
[1740721204389,127.18040002,127.06,127.03,218.62]
[1740721205090,79.96040002,127.06,127.03,218.62]
[1740721205285,18.24070002,127.06,127.05,7.8786]
[1740721205484,29.52649627,127.07,127.05,218.62]
[1740721205686,29.583601,127.07,127.05,218.62]
[1740721205892,29.583601,127.07,127.05,195.0]
[1740721206089,29.583601,127.07,127.05,0.05247101]
[1740721206688,0.05710473,127.07,127.05,0.05247101]
[1740721207993,55.10788131,127.06,127.05,7.101e-05]
[1740721208394,256.40919064,127.06,127.05,7.101e-05]
[1740721208787,47.22988131,127.06,127.01,128.06376219]
[1740721209093,55.11028131,127.02,127.01,100.27436219]
[1740721209292,47.22988131,127.02,127.01,2.86870422]
[1740721209487,116.27953631,127.02,127.01,2.86870422]
[1740721209791,124.15993631,127.02,127.01,2.86870422]
[1740721210094,7.8804,127.02,127.01,2.86870422]
[1740721210288,0.05223471,127.03,127.01,2.86870422]
[1740721210988,55.11028131,127.02,127.01,2.86870422]
[1740721211193,47.22988131,127.02,127.0,8.691e-05]
[1740721211492,7.8804,127.02,127.0,8.691e-05]
[1740721211696,116.27953631,127.02,127.0,8.691e-05]
[1740721211886,163.50941762,127.02,127.0,8.691e-05]
[1740721212088,47.22988131,127.01,127.0,8.691e-05]
[1740721212289,55.11098131,127.01,127.0,8.691e-05]
[1740721212488,55.37918131,127.01,126.8,214.26]
[1740721212689,15.75362219,126.97,126.84,14.42]
[1740721212889,116.2794494,127.01,126.84,14.42]
[1740721213195,47.22988131,126.99,126.84,14.42]
[1740721213489,7.8831,126.98,126.84,14.42]
[1740721213698,14.42,127.03,126.91,0.05584323]
[1740721213893,11.96,127.09,126.91,14.47584323]
[1740721214093,7.8794,127.04,126.96,7.8836]
[1740721215092,0.05464445,127.01,126.99,0.055738]
[1740721215297,0.05464445,127.01,126.91,228.7]
[1740721215495,0.05464445,127.01,126.99,0.05304819]
[1740721215792,0.05465208,126.97,126.91,228.7]
[1740721215987,47.22988131,127.06,126.91,228.7]
[1740721216193,47.22988131,127.07,126.91,228.7]
[1740721216388,8.372e-05,126.95,126.93,0.05736998]
[1740721216593,8.372e-05,126.95,126.94,7.8854]
[1740721217195,8.372e-05,126.95,126.94,23.64]
[1740721217395,8.372e-05,126.95,126.93,7.94336998]
[1740721217595,8.372e-05,126.95,126.93,0.05736998]
[1740721218795,8.372e-05,126.95,126.93,23.69736998]
[1740721218993,8.372e-05,126.95,126.93,0.05736998]
[1740721219999,8.372e-05,126.95,126.93,47.30736998]
[1740721220194,11.96,127.09,126.94,23.61]
[1740721220395,47.22988131,127.07,126.94,23.61]
[1740721220701,102.24978961,127.14,126.94,237.87]
[1740721220999,47.22988131,127.09,126.94,237.87]
[1740721221197,47.22988131,127.08,126.94,237.87]
[1740721221399,3.081e-05,127.03,127.0,0.0528727]
[1740721221599,3.081e-05,127.03,127.0,38.0828727]
[1740721221795,8.3309,127.13,127.06,7.8777]
[1740721221996,47.22988131,127.12,127.06,7.8777]
[1740721222290,47.22988131,127.1,127.04,7.8792]
[1740721222490,47.22988131,127.1,127.08,0.05211843]
[1740721222491,47.28809299,127.1,127.08,0.05211843]
[1740721222695,47.22988131,127.09,127.0,14.42]
[1740721222896,47.22988131,127.07,127.0,14.42]
[1740721223096,47.22988131,127.06,127.03,0.0537208]
[1740721223298,47.2844224,127.05,126.97,7.8831]
[1740721223503,47.22988131,127.05,127.03,0.05050719]
[1740721223802,0.0517431,127.02,126.97,7.8831]
[1740721223998,163.51819224,127.05,126.97,7.8831]
[1740721224198,0.05888146,127.01,126.98,0.05357492]
[1740721226096,0.05888146,127.01,127.0,7.8817]
[1740721226299,0.05888146,127.01,126.98,0.05357492]
[1740721226898,0.05888146,127.01,126.98,7.93637492]
[1740721227202,0.05888146,127.01,126.98,0.05357492]
[1740721228601,0.05888146,127.01,127.0,7.8817]
[1740721228903,0.05888146,127.01,126.98,0.05357492]
[1740721229201,0.05888146,127.01,126.99,7.8821]
[1740721229799,0.05888146,127.01,127.0,7.8817]
[1740721230004,7.7086,127.09,126.99,14.42]
[1740721230202,7.7086,127.09,126.99,209.42]
[1740721230501,7.7086,127.09,127.04,7.8788]
[1740721230800,47.22988131,127.06,126.99,209.42]
[1740721230997,47.22988131,127.04,126.99,14.42]
[1740721231197,7.86992219,127.02,126.92,14.42]
[1740721231398,39.35995912,127.01,126.92,14.42]
[1740721231796,47.24225912,127.0,126.92,14.42]
[1740721232099,47.22988131,127.0,126.92,14.42]
[1740721232406,7.9009,127.02,126.92,14.42]
[1740721232603,0.04967707,126.97,126.95,7.94411001]
[1740721232798,7.86992219,127.0,126.95,0.05951001]
[1740721232998,0.05782986,126.97,126.95,0.05951001]
[1740721233600,7.94142986,126.97,126.95,0.05951001]
[1740721234106,47.22988131,126.96,126.95,0.05951001]
[1740721234500,0.05782986,126.97,126.95,0.05951001]
[1740721234697,47.22988131,126.96,126.95,0.05951001]
[1740721234901,0.05782986,126.97,126.95,0.05951001]
[1740721235405,47.22988131,126.96,126.9,86.90152074]
[1740721235608,47.22988131,126.96,126.88,14.42]
[1740721235801,171.39381443,126.96,126.91,7.8868]
[1740721236001,7.9009,127.02,126.88,14.42]
[1740721236201,47.22988131,126.96,126.88,14.42]
[1740721236706,0.05887827,126.93,126.91,0.05957679]
[1740721236902,0.05887827,126.93,126.92,7.8867]
[1740721237099,7.9009,127.02,126.88,14.42]
[1740721237303,0.05966999,126.94,126.91,0.05593144]
[1740721237505,0.05966999,126.94,126.88,14.42]
[1740721237700,7.9009,127.02,126.91,0.05850965]
[1740721237901,0.05285355,126.94,126.93,7.886]
[1740721238102,47.22988131,126.96,126.88,14.42]
[1740721238405,0.05995156,126.95,126.92,0.05675016]
[1740721238606,0.05995156,126.95,126.92,7.94295016]
[1740721239106,0.05995156,126.95,126.94,7.8854]
[1740721240209,0.05995156,126.95,126.92,0.05675016]
[1740721240609,116.33948468,126.95,126.92,0.05675016]
[1740721240808,116.33948468,126.95,126.92,7.94325016]
[1740721241009,116.33948468,126.95,126.92,0.05675016]
[1740721241209,163.56936599,126.95,126.92,0.05675016]
[1740721241407,171.45436599,126.95,126.92,0.05675016]
[1740721241603,163.56936599,126.95,126.92,0.05675016]
[1740721241808,47.22988131,126.94,126.92,0.05675016]
[1740721242007,47.22988131,126.94,126.86,0.93727182]
[1740721242008,47.22988131,126.93,126.86,0.93727182]
[1740721242311,47.22988131,126.89,126.86,0.93727182]
[1740721242512,47.22988131,126.87,126.81,86.90152074]
[1740721242807,128.73743312,126.94,126.81,86.90152074]
[1740721242808,47.22988131,126.85,126.81,86.90152074]
[1740721243008,47.22988131,126.83,126.81,86.90152074]
[1740721243210,47.22988131,126.83,126.82,0.05735416]
[1740721243403,116.27953312,126.83,126.82,0.05735416]
[1740721244415,163.50941443,126.83,126.81,68.04712074]
[1740721244710,47.22988131,126.82,126.78,7.8953]
[1740721244911,163.50941443,126.83,126.74,130.48298299]
[1740721245103,4.1295,126.86,126.74,130.48298299]
[1740721245304,14.44,126.94,126.77,0.05989768]
[1740721245515,47.22988131,126.88,126.78,14.44]
[1740721245711,130.71953312,126.94,126.79,4.0072]
[1740721246014,130.71953312,126.94,126.78,14.44]
[1740721246015,47.22988131,126.85,126.78,14.44]
[1740721246207,7.86992219,126.84,126.78,14.44]
[1740721246407,47.22988131,126.84,126.78,14.44]
[1740721246604,0.05561914,126.82,126.81,7.8929]
[1740721246803,7.8892,126.88,126.75,4.0515]
[1740721246804,47.22988131,126.83,126.75,4.0515]
[1740721247010,47.28205786,126.83,126.8,0.05476942]
[1740721247205,47.22988131,126.82,126.8,0.05476942]
[1740721247611,47.22988131,126.81,126.8,0.05476942]
[1740721247817,47.22988131,126.81,126.74,130.48298299]
[1740721248118,190.0,126.93,126.74,130.48298299]
[1740721248421,190.0,126.93,126.8,7.8941]
[1740721248422,47.22988131,126.83,126.8,7.8941]
[1740721248916,7.86992219,126.82,126.73,22.5805]
[1740721249110,7.86992219,126.81,126.73,22.5805]
[1740721249318,7.86992219,126.79,126.76,0.05411386]
[1740721249614,0.06018402,126.78,126.76,0.05411386]
[1740721250211,8.402e-05,126.78,126.77,7.896]
[1740721253221,8.402e-05,126.78,126.77,31.556]
[1740721254018,8.402e-05,126.78,126.77,35.3296]
[1740721254320,3.829,126.88,126.77,35.3296]
[1740721254321,3.829,126.88,126.77,27.4336]
[1740721254519,3.829,126.88,126.77,3.7736]
[1740721254520,167.33849845,126.88,126.77,3.7736]
[1740721254717,47.22988131,126.86,126.77,3.7736]
[1740721255218,3.829,126.88,126.77,3.7736]
[1740721255417,5.963e-05,126.83,126.8,0.05706856]
[1740721255624,128.24723933,126.89,126.81,14.44]
[1740721255819,128.24723933,126.89,126.88,7.8891]
[1740721257119,167.60719845,126.89,126.87,0.06030664]
[1740721257418,47.22988131,126.88,126.8,3.9753]
[1740721257617,7.86992219,126.85,126.63,34.87732453]
[1740721257819,47.22988131,126.83,126.76,228.9]
[1740721258019,7.86992219,126.82,126.76,228.9]
[1740721258215,47.22988131,126.82,126.76,14.44]
[1740721258419,47.22988131,126.82,126.78,0.06022599]
[1740721258420,0.05292734,126.8,126.78,0.06022599]
[1740721258822,0.05292734,126.8,126.79,7.8946]
[1740721259020,0.05292734,126.8,126.78,0.06022599]
[1740721259319,0.05292734,126.8,126.79,7.8947]
[1740721261327,116.33254448,126.8,126.78,0.06022599]
[1740721261524,47.22988131,126.79,126.78,0.06022599]
[1740721261916,163.50949845,126.79,126.69,26.4962]
[1740721262127,47.22988131,126.77,126.69,12.0562]
[1740721262424,47.22988131,126.76,126.69,26.4962]
[1740721262628,47.22988131,126.77,126.69,26.4962]
[1740721262817,4.008,126.78,126.69,26.4962]
[1740721263019,7.8924,126.83,126.72,0.05370846]
[1740721263225,47.22988131,126.81,126.69,26.4962]
[1740721263524,8.1898,126.84,126.69,8.0935]
[1740721263525,47.22988131,126.76,126.69,8.0935]
[1740721263725,47.22988131,126.75,126.69,3.9801]
[1740721263919,47.22988131,126.74,126.69,3.9801]
[1740721264126,47.22988131,126.74,126.71,7.8992]
[1740721264322,0.04993091,126.73,126.71,7.8992]
[1740721264519,39.35995912,126.72,126.7,0.05066068]
[1740721264724,47.22988131,126.72,126.7,0.05066068]
[1740721265022,0.04993091,126.73,126.7,0.05066068]
[1740721266020,0.04993091,126.73,126.7,7.95056068]
[1740721266217,0.04993091,126.73,126.7,0.05066068]
[1740721266424,3.091e-05,126.73,126.72,7.8991]
[1740721267527,3.091e-05,126.73,126.72,31.5791]
[1740721268727,3.091e-05,126.73,126.72,7.8991]
[1740721269828,3.091e-05,126.73,126.72,31.5791]
[1740721270331,3.091e-05,126.73,126.72,226.5791]
[1740721271226,11.8033,126.87,126.84,7.8916]
[1740721271427,47.22988131,126.85,126.78,14.44]
[1740721271626,46.55258131,126.87,126.78,14.44]
[1740721271938,214.56,126.96,126.79,11.5918]
[1740721272128,34.74928131,126.89,126.79,11.5918]
[1740721272328,26.87935912,126.87,126.86,0.05253255]
[1740721272523,34.74928131,126.82,126.78,14.44]
[1740721272924,7.8909,126.86,126.78,14.44]
[1740721273125,34.74928131,126.82,126.78,14.44]
[1740721273429,7.86992219,126.83,126.78,14.44]
[1740721273733,0.05050572,126.81,126.79,0.05520749]
[1740721275033,34.74928131,126.8,126.79,0.05520749]
[1740721275234,0.05050572,126.81,126.79,0.05520749]
[1740721275436,34.79978703,126.81,126.79,0.05520749]
[1740721275630,0.05050572,126.81,126.79,0.05520749]
[1740721276637,34.74928131,126.8,126.79,0.05520749]
[1740721276837,34.74928131,126.8,126.72,3.8638]
[1740721277035,34.74928131,126.77,126.72,3.8638]
[1740721277236,34.74928131,126.77,126.72,11.7623]
[1740721277430,34.74928131,126.76,126.72,11.7623]
[1740721277636,34.74928131,126.74,126.71,0.93824613]
[1740721277831,34.74928131,126.73,126.71,0.93824613]
[1740721278138,34.74928131,126.72,126.71,0.99125497]
[1740721278345,0.0526372,126.74,126.71,8.89095497]
[1740721278542,26.87935912,126.73,126.71,8.89095497]
[1740721278939,0.0526372,126.74,126.71,8.89095497]
[1740721279241,0.0526372,126.74,126.73,7.8985]
[1740721280240,3.72e-05,126.74,126.73,7.8985]
[1740721281549,3.72e-05,126.74,126.73,11.929]
[1740721281847,3.72e-05,126.74,126.73,35.609]
[1740721282249,3.72e-05,126.74,126.73,11.929]
[1740721282440,3.72e-05,126.74,126.73,7.8985]
[1740721285448,3.72e-05,126.74,126.73,250.1885]
[1740721285644,3.72e-05,126.74,126.73,262.2239]
[1740721286254,7.7173,126.85,126.84,7.8916]
[1740721286449,131.86687024,126.85,126.84,7.8916]
[1740721286650,123.99694805,126.85,126.84,7.8916]
[1740721286850,120.09394805,126.85,126.84,7.8916]
[1740721287046,120.09394805,126.85,126.79,14.44]
[1740721287256,34.74928131,126.84,126.79,14.44]